fUST/lending_fUST_20250206
["ID","MTS","AMOUNT","RATE_DAILY","PERIOD"]
[351764327,1738780252848,-500.0,0.00014632,2]
[351764329,1738780252858,-500.0,0.00014632,2]
[351764331,1738780252868,-500.0,0.00014632,2]
[351764333,1738780252878,-768.39,0.00014632,2]
[351764335,1738780252888,-259.58287632,0.00014632,2]
[351764337,1738780252898,-500.0,0.00014632,2]
[351764339,1738780252908,-500.0,0.00014632,2]
[351764341,1738780252918,-500.0,0.00014632,2]
[351764343,1738780252928,-500.0,0.00014632,2]
[351764345,1738780252937,-968.63,0.00014632,2]
[351764347,1738780252947,-500.0,0.00014632,2]
[351764349,1738780252957,-500.0,0.00014632,2]
[351764351,1738780252966,-500.0,0.00014632,2]
[351764353,1738780252976,-577.96,0.00014632,2]
[351764355,1738780252986,-500.0,0.00014632,2]
[351764357,1738780252996,-500.0,0.00014632,2]
[351764359,1738780253005,-500.0,0.00014632,2]
[351764361,1738780253015,-500.0,0.00014632,2]
[351764363,1738780253025,-151.0,0.00014632,2]
[351764365,1738780253035,-500.0,0.00014632,2]
[351764367,1738780253044,-151.0,0.00014632,2]
[351764387,1738780253235,-151.0,0.00014632,2]
[351764389,1738780253247,-151.0,0.00014633,2]
[351764392,1738780253257,-151.0,0.00014633,2]
[351764394,1738780253267,-151.0,0.00014633,2]
[351764396,1738780253277,-151.0,0.00014633,2]
[351764398,1738780253287,-151.0,0.00014634,2]
[351764400,1738780253296,-151.0,0.00014635,2]
[351764402,1738780253306,-151.0,0.00014635,2]
[351764404,1738780253315,-151.0,0.00014635,2]
[351764406,1738780253326,-151.0,0.00014635,2]
[351764407,1738780253336,-151.0,0.00014635,2]
[351764410,1738780253345,-151.0,0.00014636,2]
[351764411,1738780253355,-323.94059654,0.00014664,2]
[351764413,1738780253365,-323.94059654,0.00014664,2]
[351764415,1738780253375,-323.94059654,0.00014664,2]
[351764417,1738780253384,-323.94059654,0.00014664,2]
[351764419,1738780253394,-323.94059654,0.00014664,2]
[351764421,1738780253404,-323.94059654,0.00014664,2]
[351764423,1738780253413,-323.94059654,0.00014664,2]
[351764425,1738780253423,-323.94059654,0.00014664,2]
[351764427,1738780253433,-323.94059654,0.00014664,2]
[351764429,1738780253443,-323.94059654,0.00014664,2]
[351764431,1738780253452,-323.94059654,0.00014664,2]
[351764433,1738780253462,-323.94059654,0.00014664,2]
[351764436,1738780253473,-323.94059654,0.00014664,2]
[351764438,1738780253483,-323.94059654,0.00014664,2]
[351764440,1738780253493,-323.94059654,0.00014664,2]
[351764442,1738780253503,-323.94059654,0.00014664,2]
[351764444,1738780253513,-323.94059654,0.00014664,2]
[351764446,1738780253523,-323.94059654,0.00014664,2]
[351764448,1738780253533,-323.94059654,0.00014664,2]
[351764450,1738780253543,-323.94,0.00014664,2]
[351764452,1738780253553,-500.0,0.00014673,2]
[351764454,1738780253564,-500.8775182,0.00014673,2]
[351764456,1738780253578,-356.16899759,0.00014673,2]
[351764458,1738780253589,-500.0,0.00014673,2]
[351764460,1738780253598,-151.0,0.000147,2]
[351764462,1738780253608,-151.0,0.000147,2]
[351764464,1738780253618,-151.0,0.000147,2]
[351764466,1738780253628,-500.0,0.00014763,2]
[351764468,1738780253640,-2168.55,0.00014763,2]
[351764470,1738780253652,-1348.91,0.00014763,2]
[351764472,1738780253663,-1024.87,0.00014763,2]
[351764474,1738780253673,-500.0,0.00014763,2]
[351764476,1738780253683,-3152.07,0.00014763,2]
[351764478,1738780253693,-500.0,0.00014763,2]
[351764480,1738780253702,-500.0,0.00014763,2]
[351764482,1738780253712,-706.02,0.00014763,2]
[351764484,1738780253722,-8777.85,0.00014763,2]
[351764486,1738780253732,-702.4,0.00014763,2]
[351764488,1738780253742,-500.0,0.00014763,2]
[351764490,1738780253752,-500.0,0.00014763,2]
[351764492,1738780253762,-703.26,0.00014763,2]
[351764494,1738780253772,-15673.47,0.00014764,2]
[351764496,1738780253781,-501.49,0.00014764,2]
[351764498,1738780253791,-500.0,0.00014764,2]
[351764500,1738780253801,-6066.1,0.00014764,2]
[351764502,1738780253811,-7677.8,0.00014764,2]
[351764504,1738780253824,-3276.94,0.00014764,2]
[351764505,1738780253833,-500.0,0.00014764,2]
[351764507,1738780253843,-500.0,0.00014764,2]
[351764510,1738780253852,-2757.83,0.00014764,2]
[351764511,1738780253862,-1132.2,0.00014764,2]
[351764513,1738780253871,-561.01,0.00014764,2]
[351764515,1738780253880,-500.0,0.00014764,2]
[351764517,1738780253889,-1099.28,0.00014764,2]
[351764519,1738780253899,-500.0,0.00014764,2]
[351764522,1738780253909,-915.53,0.00014764,2]
[351764524,1738780253919,-2938.05,0.00014764,2]
[351764526,1738780253928,-2792.67,0.00014764,2]
[351764528,1738780253937,-7273.8,0.00014764,2]
[351764530,1738780253946,-500.0,0.00014764,2]
[351764532,1738780253955,-12465.9,0.00014764,2]
[351764534,1738780253965,-500.0,0.00014764,2]
[351764536,1738780253976,-562.16,0.00014764,2]
[351764538,1738780253985,-693.68,0.00014764,2]
[351764540,1738780253994,-2878.33,0.00014764,2]
[351764541,1738780254003,-8753.23,0.00014764,2]
[351764544,1738780254013,-287.81413658,0.00014764,2]
[351764546,1738780254023,-500.0,0.00014764,2]
[351764548,1738780254032,-4448.48,0.00014764,2]
[351764550,1738780254042,-3045.88,0.00014764,2]
[351764552,1738780254051,-1307.18,0.00014764,2]
[351764554,1738780254063,-2869.47,0.00014764,2]
[351764556,1738780254077,-500.0,0.00014765,2]
[351764558,1738780254087,-1095.0,0.00014765,2]
[351764560,1738780254096,-2982.68,0.00014765,2]
[351764561,1738780254106,-500.0,0.00014765,2]
[351764564,1738780254116,-500.0,0.00014765,2]
[351764566,1738780254127,-500.0,0.00014765,2]
[351764568,1738780254138,-538.68,0.00014765,2]
[351764570,1738780254147,-2187.36,0.00014765,2]
[351764572,1738780254157,-748.08,0.00014765,2]
[351764573,1738780254167,-503.89,0.00014765,2]
[351764575,1738780254177,-500.0,0.00014765,2]
[351764578,1738780254187,-500.0,0.00014765,2]
[351764580,1738780254196,-1467.76,0.00014765,2]
[351764581,1738780254208,-500.0,0.00014765,2]
[351764584,1738780254218,-625.76,0.00014765,2]
[351764586,1738780254228,-2645.18,0.00014765,2]
[351764587,1738780254238,-1058.77,0.00014765,2]
[351764589,1738780254248,-1759.09,0.00014765,2]
[351764591,1738780254257,-1592.88,0.00014765,2]
[351764593,1738780254267,-500.0,0.00014765,2]
[351764595,1738780254277,-766.22,0.00014765,2]
[351764597,1738780254287,-500.0,0.00014765,2]
[351764599,1738780254297,-500.0,0.00014765,2]
[351764601,1738780254306,-1516.9,0.00014765,2]
[351764603,1738780254316,-500.0,0.00014765,2]
[351764605,1738780254329,-1706.57,0.00014765,2]
[351764607,1738780254338,-622.76,0.00014765,2]
[351764609,1738780254348,-514.42,0.00014765,2]
[351764611,1738780254357,-1029.63,0.00014765,2]
[351764613,1738780254366,-1988.32,0.00014765,2]
[351764615,1738780254375,-1170.42,0.00014765,2]
[351764617,1738780254385,-2543.97,0.00014765,2]
[351764619,1738780254394,-908.66,0.00014765,2]
[351764621,1738780254403,-500.0,0.00014765,2]
[351764623,1738780254413,-151.0,0.00014765,2]
[351764625,1738780254423,-1241.99,0.00014765,2]
[351764628,1738780254432,-500.0,0.00014765,2]
[351764629,1738780254442,-621.46935419,0.00014765,2]
[351764632,1738780254453,-500.0,0.00014765,2]
[351764634,1738780254462,-194.84084991,0.00014765,2]
[351764635,1738780254472,-1058.65,0.00014765,2]
[351764638,1738780254482,-500.0,0.00014765,2]
[351764640,1738780254493,-306.2736583,0.00014765,2]
[351764642,1738780254503,-682.3,0.00014765,2]
[351764643,1738780254515,-500.0,0.00014765,2]
[351764646,1738780254527,-736.85,0.00014765,2]
[351764648,1738780254536,-4013.82,0.00014765,2]
[351764650,1738780254547,-1378.51,0.00014765,2]
[351764652,1738780254558,-443.65873866,0.00014765,2]
[351764653,1738780254568,-500.0,0.00014765,2]
[351764656,1738780254579,-3205.75,0.00014765,2]
[351764658,1738780254589,-500.0,0.00014765,2]
[351764660,1738780254599,-632.19,0.00014765,2]
[351764662,1738780254608,-920.41,0.00014765,2]
[351764663,1738780254618,-500.0,0.00014765,2]
[351764665,1738780254627,-500.0,0.00014765,2]
[351764668,1738780254637,-604.11,0.00014765,2]
[351764670,1738780254647,-500.0,0.00014765,2]
[351764672,1738780254656,-500.0,0.00014765,2]
[351764673,1738780254666,-500.0,0.00014765,2]
[351764675,1738780254676,-8731.87,0.00014765,2]
[351764678,1738780254686,-917.08,0.00014765,2]
[351764679,1738780254695,-500.0,0.00014765,2]
[351764681,1738780254704,-151.0,0.00014765,2]
[351764683,1738780254713,-1523.44,0.00014765,2]
[351764685,1738780254723,-2978.44,0.00014765,2]
[351764687,1738780254732,-1707.29,0.00014765,2]
[351764689,1738780254742,-377.12731864,0.00014765,2]
[351764691,1738780254752,-1157.59,0.00014765,2]
[351764693,1738780254762,-500.0,0.00014765,2]
[351764695,1738780254771,-39231.2,0.00014765,2]
[351764697,1738780254780,-1749.67,0.00014765,2]
[351764699,1738780254790,-732.1,0.00014765,2]
[351764701,1738780254800,-5131.21872853,0.00014765,2]
[351764703,1738780254814,-489.413076,0.00014765,2]
[351764708,1738780254849,-493.62819547,0.00014765,2]
[351764710,1738780254859,-543.7,0.00014765,2]
[351764712,1738780254869,-500.0,0.00014765,2]
[351764714,1738780254879,-500.0,0.00014765,2]
[351764716,1738780254888,-670.4,0.00014765,2]
[351764718,1738780254898,-1716.71,0.00014765,2]
[351764720,1738780254907,-8456.48,0.00014765,2]
[351764722,1738780254917,-2679.88,0.00014765,2]
[351764724,1738780254926,-500.0,0.00014765,2]
[351764726,1738780254935,-987.28,0.00014765,2]
[351764728,1738780254945,-669.88,0.00014765,2]
[351764730,1738780254955,-500.0,0.00014765,2]
[351764731,1738780254964,-232.91058142,0.00014765,2]
[351764733,1738780254975,-500.0,0.00014765,2]
[351764735,1738780254984,-500.0,0.00014765,2]
[351764737,1738780254993,-540.86,0.00014765,2]
[351764739,1738780255003,-500.0,0.00014765,2]
[351764741,1738780255013,-3038.21,0.00014765,2]
[351764743,1738780255023,-607.8,0.00014765,2]
[351764745,1738780255033,-500.0,0.00014765,2]
[351764747,1738780255042,-500.0,0.00014765,2]
[351764749,1738780255054,-38080.81134911,0.00014765,2]
[351764751,1738780255065,-29606.95561147,0.00014765,2]
[351764754,1738780255084,-2353.23533855,0.00014765,2]
[351764756,1738780255097,-57275.90770087,0.00014765,2]
[351764758,1738780255107,-637.14,0.00014765,2]
[351764760,1738780255119,-500.0,0.00014765,2]
[351764762,1738780255130,-474.75528545,0.00014765,2]
[351764764,1738780255139,-5356.49,0.00014765,2]
[351764766,1738780255150,-606.85,0.00014765,2]
[351764768,1738780255161,-3267.36,0.00014765,2]
[351764770,1738780255171,-500.0,0.00014765,2]
[351764772,1738780255180,-8272.80342053,0.00014765,2]
[351764796,1738780255410,-5275.88166575,0.00014765,2]
[351764798,1738780255422,-287.4975214,0.00014765,2]
[351764800,1738780255434,-23224.50739232,0.00014765,2]
[351764803,1738780255444,-500.0,0.00014765,2]
[351764805,1738780255454,-500.0,0.00014765,2]
[351764807,1738780255464,-500.0,0.00014765,2]
[351764809,1738780255476,-1966.6,0.00014765,2]
[351764811,1738780255486,-500.0,0.00014765,2]
[351764813,1738780255496,-795.12,0.00014765,2]
[351764815,1738780255507,-500.0,0.00014765,2]
[351764817,1738780255516,-500.0,0.00014766,2]
[351764818,1738780255526,-500.0,0.00014766,2]
[351764820,1738780255535,-500.0,0.00014766,2]
[351764822,1738780255545,-278.87593174,0.00014766,2]
[351764824,1738780255554,-500.0,0.00014766,2]
[351764826,1738780255564,-500.0,0.00014766,2]
[351764828,1738780255575,-500.0,0.00014766,2]
[351764830,1738780255585,-500.0,0.00014766,2]
[351764832,1738780255594,-500.0,0.00014766,2]
[351764834,1738780255604,-500.0,0.00014766,2]
[351764836,1738780255614,-501.79,0.00014766,2]
[351764838,1738780255625,-500.0,0.00014766,2]
[351764840,1738780255635,-500.0,0.00014766,2]
[351764842,1738780255646,-560.22,0.00014766,2]
[351764844,1738780255657,-500.0,0.00014766,2]
[351764846,1738780255666,-500.0,0.00014766,2]
[351764848,1738780255675,-500.0,0.00014766,2]
[351764850,1738780255684,-500.0,0.00014766,2]
[351764852,1738780255694,-502.54,0.00014766,2]
[351764854,1738780255704,-500.0,0.00014766,2]
[351764856,1738780255714,-500.0,0.00014766,2]
[351764858,1738780255724,-500.0,0.00014766,2]
[351764860,1738780255734,-272.7991951,0.00014766,2]
[351764862,1738780255744,-719.67,0.00014766,2]
[351764864,1738780255754,-500.0,0.00014766,2]
[351764865,1738780255763,-500.0,0.00014766,2]
[351764867,1738780255773,-500.0,0.00014766,2]
[351764869,1738780255783,-500.0,0.00014766,2]
[351764872,1738780255793,-873.8,0.00014766,2]
[351764887,1738780255932,-500.0,0.00014766,2]
[351764889,1738780255941,-714.78,0.00014766,2]
[351764891,1738780255951,-500.0,0.00014766,2]
[351764893,1738780255960,-500.0,0.00014766,2]
[351764895,1738780255970,-500.0,0.00014766,2]
[351764896,1738780255979,-472.66903431,0.00014766,2]
[351764898,1738780255988,-500.0,0.00014766,2]
[351764900,1738780256000,-500.0,0.00014766,2]
[351764902,1738780256012,-253.87792953,0.00014766,2]
[351764904,1738780256023,-500.0,0.00014766,2]
[351764906,1738780256033,-500.0,0.00014766,2]
[351764908,1738780256043,-500.0,0.00014766,2]
[351764910,1738780256053,-500.0,0.00014766,2]
[351764912,1738780256063,-500.0,0.00014766,2]
[351764914,1738780256074,-688.53,0.00014766,2]
[351764916,1738780256085,-671.38,0.00014766,2]
[351764918,1738780256097,-837.98,0.00014766,2]
[351764920,1738780256110,-702.43,0.00014766,2]
[351764922,1738780256121,-1334.37,0.00014766,2]
[351764924,1738780256133,-500.0,0.00014766,2]
[351764926,1738780256143,-540.94,0.00014766,2]
[351764928,1738780256155,-500.0,0.00014766,2]
[351764930,1738780256169,-173.982962,0.00014766,2]
[351764932,1738780256179,-500.0,0.00014766,2]
[351764934,1738780256190,-500.0,0.00014766,2]
[351764936,1738780256201,-500.0,0.00014766,2]
[351764938,1738780256216,-832.24,0.00014766,2]
[351764940,1738780256227,-500.0,0.00014766,2]
[351764942,1738780256241,-500.0,0.00014766,2]
[351764944,1738780256255,-500.0,0.00014766,2]
[351764946,1738780256265,-500.0,0.00014766,2]
[351764948,1738780256275,-500.0,0.00014766,2]
[351764950,1738780256285,-567.03014329,0.00014766,2]
[351764952,1738780256295,-500.0,0.00014766,2]
[351764954,1738780256305,-500.0,0.00014766,2]
[351764955,1738780256314,-701.2,0.00014766,2]
[351764958,1738780256325,-500.0,0.00014766,2]
[351764960,1738780256335,-500.0,0.00014766,2]
[351764961,1738780256345,-500.0,0.00014766,2]
[351764963,1738780256354,-500.0,0.00014766,2]
[351764965,1738780256364,-500.0,0.00014766,2]
[351764967,1738780256374,-681.38,0.00014766,2]
[351764969,1738780256383,-551.44,0.00014766,2]
[351764971,1738780256393,-541.03,0.00014766,2]
[351764973,1738780256402,-151.0,0.00014766,2]
[351764975,1738780256412,-500.0,0.00014766,2]
[351764977,1738780256422,-631.58,0.00014766,2]
[351764979,1738780256432,-500.0,0.00014766,2]
[351764981,1738780256441,-500.0,0.00014766,2]
[351764983,1738780256451,-500.0,0.00014766,2]
[351764985,1738780256461,-500.0,0.00014766,2]
[351764987,1738780256471,-500.0,0.00014766,2]
[351764989,1738780256481,-500.0,0.00014766,2]
[351764991,1738780256491,-500.0,0.00014766,2]
[351764993,1738780256500,-888.89,0.00014766,2]
[351764995,1738780256510,-524.11594183,0.00014766,2]
[351764997,1738780256519,-500.0,0.00014766,2]
[351764998,1738780256529,-413.77714815,0.00014766,2]
[351765000,1738780256539,-500.0,0.00014766,2]
[351765002,1738780256548,-500.0,0.00014766,2]
[351765004,1738780256558,-500.0,0.00014766,2]
[351765006,1738780256570,-831.07,0.00014766,2]
[351765009,1738780256581,-500.0,0.00014766,2]
[351765010,1738780256590,-500.0,0.00014766,2]
[351765012,1738780256600,-201.894065,0.00014766,2]
[351765014,1738780256609,-1521.64,0.00014766,2]
[351765016,1738780256619,-500.0,0.00014766,2]
[351765018,1738780256629,-500.0,0.00014766,2]
[351765020,1738780256638,-500.0,0.00014766,2]
[351765022,1738780256648,-504.87196526,0.00014766,2]
[351765024,1738780256658,-500.0,0.00014766,2]
[351765026,1738780256667,-500.0,0.00014766,2]
[351765028,1738780256676,-500.0,0.00014766,2]
[351765030,1738780256686,-500.0,0.00014766,2]
[351765032,1738780256695,-500.0,0.00014766,2]
[351765034,1738780256705,-500.0,0.00014766,2]
[351765036,1738780256714,-500.0,0.00014766,2]
[351765038,1738780256724,-500.0,0.00014766,2]
[351765040,1738780256733,-500.0,0.00014766,2]
[351765042,1738780256743,-500.0,0.00014766,2]
[351765044,1738780256753,-500.0,0.00014766,2]
[351765046,1738780256762,-500.0,0.00014766,2]
[351765048,1738780256772,-500.0,0.00014766,2]
[351765050,1738780256782,-500.0,0.00014766,2]
[351765052,1738780256792,-500.0,0.00014766,2]
[351765054,1738780256801,-500.0,0.00014766,2]
[351765055,1738780256811,-500.0,0.00014766,2]
[351765057,1738780256822,-500.0,0.00014766,2]
[351765059,1738780256831,-1219.15,0.00014766,2]
[351765061,1738780256841,-500.0,0.00014766,2]
[351765063,1738780256850,-544.7,0.00014766,2]
[351765065,1738780256860,-500.0,0.00014766,2]
[351765067,1738780256871,-500.0,0.00014766,2]
[351765069,1738780256881,-846.52,0.00014766,2]
[351765071,1738780256892,-500.0,0.00014766,2]
[351765073,1738780256901,-500.0,0.00014766,2]
[351765074,1738780256913,-500.0,0.00014766,2]
[351765075,1738780256923,-729.32,0.00014766,2]
[351765076,1738780256934,-1273.73,0.00014766,2]
[351765077,1738780256945,-500.0,0.00014766,2]
[351765078,1738780256954,-630.52,0.00014766,2]
[351765079,1738780256964,-500.0,0.00014766,2]
[351765080,1738780256974,-500.0,0.00014766,2]
[351765081,1738780256984,-500.0,0.00014766,2]
[351765082,1738780256994,-500.0,0.00014766,2]
[351765083,1738780257005,-500.0,0.00014766,2]
[351765084,1738780257014,-507.50269389,0.00014766,2]
[351765085,1738780257024,-1018.17,0.00014766,2]
[351765086,1738780257034,-578.09,0.00014766,2]
[351765087,1738780257043,-500.0,0.00014766,2]
[351765088,1738780257053,-528.36,0.00014766,2]
[351765089,1738780257063,-500.0,0.00014766,2]
[351765091,1738780257073,-500.0,0.00014766,2]
[351765093,1738780257083,-500.0,0.00014766,2]
[351765095,1738780257093,-500.0,0.00014766,2]
[351765097,1738780257102,-500.0,0.00014766,2]
[351765099,1738780257112,-1000.0,0.00014766,2]
[351765101,1738780257122,-500.0,0.00014766,2]
[351765103,1738780257135,-500.0,0.00014766,2]
[351765105,1738780257144,-500.0,0.00014766,2]
[351765107,1738780257156,-793.38,0.00014766,2]
[351765109,1738780257166,-500.0,0.00014766,2]
[351765111,1738780257176,-193.059619,0.00014766,2]
[351765113,1738780257185,-877.95,0.00014766,2]
[351765115,1738780257194,-501.11033946,0.00014766,2]
[351765117,1738780257205,-641.7694299,0.00014766,2]
[351765119,1738780257214,-690.82,0.00014766,2]
[351765121,1738780257223,-1862.29,0.00014766,2]
[351765123,1738780257233,-500.0,0.00014766,2]
[351765125,1738780257243,-383.15799884,0.00014766,2]
[351765127,1738780257252,-500.0,0.00014766,2]
[351765129,1738780257262,-500.0,0.00014766,2]
[351765131,1738780257271,-500.0,0.00014766,2]
[351765132,1738780257281,-1716.79,0.00014766,2]
[351765134,1738780257290,-217.28436142,0.00014766,2]
[351765136,1738780257300,-429.92509913,0.00014766,2]
[351765139,1738780257314,-70.07490087,0.00014766,2]
[351765141,1738780257325,-188.0,0.00014766,2]
[351765143,1738780257335,-500.0,0.00014766,2]
[351765145,1738780257344,-500.0,0.00014766,2]
[351765147,1738780257354,-500.0,0.00014766,2]
[351765149,1738780257363,-500.0,0.00014766,2]
[351765151,1738780257373,-500.0,0.00014766,2]
[351765153,1738780257383,-500.0,0.00014766,2]
[351765155,1738780257392,-872.01,0.00014766,2]
[351765156,1738780257402,-500.0,0.00014766,2]
[351765158,1738780257412,-1050.26,0.00014766,2]
[351765160,1738780257421,-34.22713284,0.00014766,2]
[351765176,1738780257561,-536.54576892,0.00014491,2]
[351765178,1738780257573,-465.77286716,0.00014766,2]
[351765180,1738780257583,-500.0,0.00014766,2]
[351765182,1738780257592,-437.4569994,0.00014766,2]
[351765512,1738781174342,336.963298,0.00013973,2]
[351765530,1738781432181,-500.0,0.00014164,2]
[351765531,1738781432190,-1481.61334139,0.00014389,4]
[351765532,1738781432200,-300.0,0.00014433,2]
[351765533,1738781432209,-809.69118561,0.00014434,2]
[351765534,1738781432242,-8931.4405955,0.00014434,2]
[351765535,1738781432251,-500.0,0.00014485,2]
[351765536,1738781432260,-5950.96,0.00014485,2]
[351765537,1738781432268,-2130.36,0.00014485,2]
[351765538,1738781432278,-1319.46,0.00014485,2]
[351765539,1738781432289,-500.0,0.00014485,2]
[351765540,1738781432299,-1015.29,0.00014485,2]
[351765541,1738781432309,-500.0,0.00014485,2]
[351765542,1738781432318,-1036.84,0.00014485,2]
[351765543,1738781432327,-500.0,0.00014485,2]
[351765544,1738781432336,-500.0,0.00014485,2]
[351765545,1738781432346,-508.83177126,0.00014485,2]
[351765546,1738781432355,-697.01,0.00014486,2]
[351765547,1738781432364,-500.0,0.00014486,2]
[351765548,1738781432373,-500.0,0.00014486,2]
[351765549,1738781432382,-500.0,0.00014486,2]
[351765550,1738781432392,-500.0,0.00014486,2]
[351765551,1738781432401,-500.0,0.00014486,2]
[351765552,1738781432411,-500.0,0.00014486,2]
[351765553,1738781432420,-692.29,0.00014486,2]
[351765554,1738781432429,-500.0,0.00014486,2]
[351765555,1738781432439,-629.77,0.00014486,2]
[351765556,1738781432448,-500.0,0.00014486,2]
[351765557,1738781432458,-500.0,0.00014486,2]
[351765558,1738781432467,-500.0,0.00014486,2]
[351765559,1738781432476,-500.0,0.00014486,2]
[351765560,1738781432486,-643.87,0.00014486,2]
[351765561,1738781432496,-500.0,0.00014486,2]
[351765562,1738781432505,-500.0,0.00014486,2]
[351765563,1738781432515,-8046.36,0.00014486,2]
[351765564,1738781432524,-500.0,0.00014486,2]
[351765565,1738781432539,-610.21,0.00014486,2]
[351765566,1738781432549,-287.39746424,0.00014486,2]
[351765603,1738781438271,-663.44,0.00014485,2]
[351765607,1738781438281,-249.48253576,0.00014486,2]
[351765610,1738781438292,-500.0,0.00014486,2]
[351765613,1738781438302,-500.0,0.00014486,2]
[351765616,1738781438311,-500.0,0.00014486,2]
[351765619,1738781438321,-500.0,0.00014486,2]
[351765621,1738781438331,-500.0,0.00014486,2]
[351765623,1738781438340,-500.0,0.00014486,2]
[351765625,1738781438349,-500.0,0.00014486,2]
[351765628,1738781438359,-500.0,0.00014486,2]
[351765630,1738781438369,-500.0,0.00014486,2]
[351765633,1738781438378,-14367.34,0.00014486,2]
[351765634,1738781438388,-500.0,0.00014486,2]
[351765636,1738781438397,-500.0,0.00014486,2]
[351765639,1738781438407,-500.0,0.00014486,2]
[351765640,1738781438417,-5560.59,0.00014486,2]
[351765642,1738781438427,-500.0,0.00014486,2]
[351765645,1738781438436,-500.0,0.00014486,2]
[351765647,1738781438446,-500.0,0.00014486,2]
[351765648,1738781438455,-3140.4,0.00014486,2]
[351765650,1738781438465,-500.0,0.00014486,2]
[351765652,1738781438475,-7111.68,0.00014486,2]
[351765654,1738781438485,-500.0,0.00014486,2]
[351765656,1738781438495,-527.87139466,0.00014486,2]
[351765658,1738781438504,-2642.92,0.00014486,2]
[351765660,1738781438514,-500.0,0.00014486,2]
[351765662,1738781438524,-689.68,0.00014486,2]
[351765664,1738781438538,-500.0,0.00014486,2]
[351765666,1738781438552,-500.0,0.00014486,2]
[351765668,1738781438564,-500.0,0.00014486,2]
[351765670,1738781438575,-500.0,0.00014486,2]
[351765672,1738781438586,-500.0,0.00014486,2]
[351765674,1738781438596,-1085.03,0.00014486,2]
[351765676,1738781438606,-1053.48,0.00014486,2]
[351765679,1738781438617,-500.0,0.00014486,2]
[351765681,1738781438629,-500.0,0.00014486,2]
[351765683,1738781438641,-500.0,0.00014486,2]
[351765685,1738781438651,-500.0,0.00014486,2]
[351765687,1738781438661,-500.0,0.00014486,2]
[351765689,1738781438671,-500.0,0.00014486,2]
[351765691,1738781438680,-500.0,0.00014486,2]
[351765693,1738781438690,-2815.63,0.00014486,2]
[351765695,1738781438700,-877.38,0.00014486,2]
[351765697,1738781438710,-837.39,0.00014486,2]
[351765699,1738781438720,-500.0,0.00014486,2]
[351765701,1738781438730,-500.0,0.00014486,2]
[351765703,1738781438740,-6970.73,0.00014486,2]
[351765705,1738781438750,-685.0,0.00014486,2]
[351765707,1738781438760,-500.0,0.00014486,2]
[351765709,1738781438770,-1915.06,0.00014486,2]
[351765711,1738781438780,-2676.3,0.00014486,2]
[351765713,1738781438794,-11946.48,0.00014486,2]
[351765715,1738781438803,-329.93248114,0.00014486,2]
[351765717,1738781438814,-500.0,0.00014486,2]
[351765719,1738781438823,-500.0,0.00014486,2]
[351765721,1738781438834,-547.58,0.00014486,2]
[351765723,1738781438844,-500.0,0.00014486,2]
[351765725,1738781438854,-538.74,0.00014486,2]